fUST/lending_fUST_20260521
["ID","MTS","AMOUNT","RATE_DAILY","PERIOD"]
[422752049,1779355838000,-300.0,8.552e-05,2]
[422752052,1779355838000,-300.0,8.552e-05,2]
[422752047,1779355838000,-300.0,8.552e-05,2]
[422752043,1779355838000,-5123.46034066,8.485e-05,2]
[422752046,1779355838000,-300.0,8.552e-05,2]
[422752050,1779355838000,-300.0,8.552e-05,2]
[422752041,1779355838000,-500.0,8.481e-05,2]
[422752040,1779355838000,-500.0,8.481e-05,2]
[422752036,1779355838000,-500.0,8.481e-05,2]
[422752038,1779355838000,-500.0,8.481e-05,2]
[422752039,1779355838000,-500.0,8.481e-05,2]
[422752037,1779355838000,-500.0,8.481e-05,2]
[422752035,1779355838000,-500.0,8.481e-05,2]
[422752044,1779355838000,-300.0,8.552e-05,2]
[422752042,1779355838000,-631.50270691,8.481e-05,2]
[422752071,1779355838000,-9794.64162149,8.685e-05,2]
[422752054,1779355838000,-300.0,8.552e-05,2]
[422752070,1779355838000,-500.0,8.658e-05,2]
[422752069,1779355838000,-500.0,8.658e-05,2]
[422752068,1779355838000,-500.0,8.658e-05,2]
[422752067,1779355838000,-500.0,8.658e-05,2]
[422752066,1779355838000,-500.0,8.658e-05,2]
[422752064,1779355838000,-236.62962918,8.657e-05,2]
[422752062,1779355838000,-500.0,8.657e-05,2]
[422752053,1779355838000,-300.0,8.552e-05,2]
[422752063,1779355838000,-500.0,8.657e-05,2]
[422752057,1779355838000,-300.0,8.552e-05,2]
[422752061,1779355838000,-500.0,8.6e-05,2]
[422752065,1779355838000,-266.00642725,8.657e-05,2]
[422752058,1779355838000,-300.0,8.552e-05,2]
[422752060,1779355838000,-10800.1014111,8.585e-05,2]
[422752056,1779355838000,-300.0,8.552e-05,2]
[422752055,1779355838000,-300.0,8.552e-05,2]
[422752059,1779355838000,-472.91468003,8.585e-05,2]
[422752076,1779355840000,-600.0,8.722e-05,2]
[422752077,1779355840000,-152.95169171,8.782e-05,2]
[422752078,1779355840000,-954.63932051,8.598e-05,2]
[422752075,1779355840000,-1505.44975246,8.685e-05,2]
[422752085,1779355846000,-738.80108402,8.598e-05,2]
[422752195,1779357032000,-153.4067397,8.351e-05,2]
[422752193,1779357032000,-1712.1733347,8.228e-05,2]
[422752205,1779357032000,-1143.8335791,8.399e-05,2]
[422752203,1779357032000,-176.1610382,8.399e-05,2]
[422752191,1779357032000,-428.47180548,8.228e-05,2]
[422752188,1779357032000,-526.39577237,8.219e-05,5]
[422752180,1779357032000,-553.26196152,7.732e-05,2]
[422752175,1779357032000,-357.4003705,7.513e-05,2]
[422752178,1779357032000,-325.9692126,7.534e-05,2]
[422752173,1779357032000,-5000.0,7.438e-05,2]
[422752184,1779357032000,-175.46525746,8.219e-05,5]
[422752182,1779357032000,-220.21779177,7.803e-05,2]
[422752187,1779357032000,-350.93051491,8.219e-05,5]
[422752200,1779357032000,-151.0,8.351e-05,2]
[422752208,1779357032000,-160.0,8.701e-05,2]
[422752212,1779357032000,-500.0,8.784e-05,2]
[422752198,1779357032000,-288.0428102,8.351e-05,2]
[422752238,1779357032000,-6829.52827546,8.836e-05,2]
[422752235,1779357032000,-500.0,8.8e-05,2]
[422752233,1779357032000,-11865.11155221,8.785e-05,2]
[422752231,1779357032000,-500.0,8.784e-05,2]
[422752229,1779357032000,-500.0,8.784e-05,2]
[422752220,1779357032000,-500.7034496,8.784e-05,2]
[422752240,1779357032000,-271.81107503,8.836e-05,2]
[422752223,1779357032000,-296.24958343,8.784e-05,2]
[422752227,1779357032000,-264.03650177,8.784e-05,2]
[422752217,1779357032000,-500.0,8.784e-05,2]
[422752225,1779357032000,-225.71425379,8.784e-05,2]
[422752214,1779357032000,-500.0,8.784e-05,2]
[422752219,1779357032000,-500.0,8.784e-05,2]
[422752210,1779357032000,-766.48970852,8.701e-05,2]
[422752347,1779357038000,-700.0,9e-05,2]
[422752341,1779357038000,-300.0,8.96e-05,2]
[422752342,1779357038000,-300.0,8.96e-05,2]
[422752340,1779357038000,-300.0,8.96e-05,2]
[422752338,1779357038000,-300.0,8.96e-05,2]
[422752343,1779357038000,-300.0,8.96e-05,2]
[422752345,1779357038000,-300.0,8.96e-05,2]
[422752348,1779357038000,-12930.12169332,9.036e-05,2]
[422752352,1779357038000,-500.0,9.058e-05,2]
[422752351,1779357038000,-500.0,9.058e-05,2]
[422752350,1779357038000,-500.0,9.058e-05,2]
[422752346,1779357038000,-300.0,8.96e-05,2]
[422752349,1779357038000,-500.0,9.058e-05,2]
[422752331,1779357038000,-300.0,8.96e-05,2]
[422752337,1779357038000,-300.0,8.96e-05,2]
[422752336,1779357038000,-300.0,8.96e-05,2]
[422752335,1779357038000,-300.0,8.96e-05,2]
[422752332,1779357038000,-300.0,8.96e-05,2]
[422752333,1779357038000,-300.0,8.96e-05,2]
[422752330,1779357038000,-160.0,8.907e-05,2]
[422752327,1779357038000,-160.0,8.9e-05,2]
[422752334,1779357038000,-300.0,8.96e-05,2]
[422752326,1779357038000,-11731.04100047,8.836e-05,2]
[422752324,1779357038000,-459.05585632,8.835e-05,2]
[422752329,1779357038000,-161.7158655,8.907e-05,2]
[422752354,1779357038000,-325.9692126,9.133e-05,2]
[422752339,1779357038000,-300.0,8.96e-05,2]
[422752355,1779357038000,-151.0,9.133e-05,2]
[422752366,1779357038000,-500.0,9.398e-05,2]
[422752357,1779357038000,-4007.96885792,9.262e-05,2]
[422752383,1779357038000,-13607.10615054,9.4e-05,2]
[422752381,1779357038000,-990.24516028,9.398e-05,2]
[422752379,1779357038000,-990.24516028,9.398e-05,2]
[422752377,1779357038000,-990.24516028,9.398e-05,2]
[422752380,1779357038000,-990.24516028,9.398e-05,2]
[422752378,1779357038000,-990.24516028,9.398e-05,2]
[422752376,1779357038000,-990.24516028,9.398e-05,2]
[422752374,1779357038000,-990.24516028,9.398e-05,2]
[422752375,1779357038000,-990.24516028,9.398e-05,2]
[422752373,1779357038000,-990.24516028,9.398e-05,2]
[422752372,1779357038000,-990.24516028,9.398e-05,2]
[422752370,1779357038000,-990.24516028,9.398e-05,2]
[422752371,1779357038000,-990.24516028,9.398e-05,2]
[422752368,1779357038000,-441.48851286,9.398e-05,2]
[422752367,1779357038000,-990.24516028,9.398e-05,2]
[422752365,1779357038000,-990.24516028,9.398e-05,2]
[422752382,1779357038000,-21960.92759897,9.4e-05,2]
[422752363,1779357038000,-500.0,9.332e-05,2]
[422752364,1779357038000,-990.24516028,9.398e-05,2]
[422752362,1779357038000,-486.42,9.332e-05,2]
[422752359,1779357038000,-500.0,9.332e-05,2]
[422752358,1779357038000,-5525.31023198,9.262e-05,2]
[422752361,1779357038000,-137.8201179,9.332e-05,2]
[422752360,1779357038000,-362.1798821,9.332e-05,2]
[422752356,1779357038000,-600.0,9.138e-05,2]
[422752369,1779357038000,-990.24516028,9.398e-05,2]
[422752353,1779357038000,-421.91664867,9.123e-05,2]
[422752389,1779357040000,-354.61233059,9.4e-05,2]
[422752420,1779357043000,-741.67938055,9.398e-05,2]
[422752422,1779357043000,-484.03487324,9.398e-05,2]
[422752596,1779358238000,-2873.40886433,8.228e-05,2]
[422752621,1779358238000,-300.0,8.959e-05,2]
[422752622,1779358238000,-300.0,8.959e-05,2]
[422752620,1779358238000,-300.0,8.959e-05,2]
[422752619,1779358238000,-300.0,8.959e-05,2]
[422752626,1779358238000,-281.1764378,9.078e-05,2]
[422752617,1779358238000,-300.0,8.959e-05,2]
[422752618,1779358238000,-300.0,8.959e-05,2]
[422752616,1779358238000,-300.0,8.959e-05,2]
[422752615,1779358238000,-300.0,8.959e-05,2]
[422752614,1779358238000,-300.0,8.959e-05,2]
[422752611,1779358238000,-300.0,8.959e-05,2]
[422752612,1779358238000,-300.0,8.959e-05,2]
[422752613,1779358238000,-300.0,8.959e-05,2]
[422752610,1779358238000,-300.0,8.959e-05,2]
[422752608,1779358238000,-766.48970852,8.727e-05,2]
[422752606,1779358238000,-161.7158655,8.723e-05,2]
[422752607,1779358238000,-160.0,8.723e-05,2]
[422752604,1779358238000,-542.19672229,8.347e-05,2]
[422752603,1779358238000,-325.9692126,8.311e-05,2]
[422752605,1779358238000,-233.9536766,8.534e-05,5]
[422752602,1779358238000,-325.9692126,8.311e-05,2]
[422752601,1779358238000,-325.4320955,8.311e-05,2]
[422752597,1779358238000,-2126.59113567,8.228e-05,2]
[422752599,1779358238000,-476.0641819,8.311e-05,2]
[422752600,1779358238000,-0.5371171,8.311e-05,2]
[422752598,1779358238000,-246.7506824,8.311e-05,2]
[422752609,1779358238000,-467.90735321,8.817e-05,5]
[422752624,1779358238000,-300.0,8.959e-05,2]
[422752630,1779358238000,-325.9692126,9.133e-05,2]
[422752625,1779358238000,-456.643312,9.072e-05,2]
[422752623,1779358238000,-300.0,8.959e-05,2]
[422752653,1779358238000,-828.84854991,9.399e-05,2]
[422752650,1779358238000,-828.84854991,9.399e-05,2]
[422752651,1779358238000,-828.84854991,9.399e-05,2]
[422752649,1779358238000,-828.84854991,9.399e-05,2]
[422752654,1779358238000,-828.84854991,9.399e-05,2]
[422752652,1779358238000,-828.84854991,9.399e-05,2]
[422752648,1779358238000,-828.84854991,9.399e-05,2]
[422752645,1779358238000,-828.84854991,9.399e-05,2]
[422752647,1779358238000,-577.60062862,9.399e-05,2]
[422752644,1779358238000,-828.84854991,9.399e-05,2]
[422752642,1779358238000,-828.84854991,9.399e-05,2]
[422752643,1779358238000,-828.84854991,9.399e-05,2]
[422752646,1779358238000,-251.24792129,9.399e-05,2]
[422752639,1779358238000,-828.84854991,9.399e-05,2]
[422752627,1779358238000,-325.9692126,9.078e-05,2]
[422752629,1779358238000,-325.9692126,9.133e-05,2]
[422752628,1779358238000,-2601.7961078,9.104e-05,2]
[422752640,1779358238000,-828.84854991,9.399e-05,2]
[422752634,1779358238000,-500.0,9.398e-05,2]
[422752632,1779358238000,-574.73231745,9.397e-05,2]
[422752631,1779358238000,-537.6845,9.364e-05,2]
[422752636,1779358238000,-500.0,9.398e-05,2]
[422752633,1779358238000,-396.125,9.398e-05,2]
[422752638,1779358238000,-159.041959,9.399e-05,2]
[422752637,1779358238000,-500.0,9.399e-05,2]
[422752641,1779358238000,-828.84854991,9.399e-05,2]
[422752635,1779358238000,-500.0,9.398e-05,2]
[422752663,1779358239000,-881.59345762,9.399e-05,2]
[422752656,1779358239000,-828.84854991,9.399e-05,2]
[422752655,1779358239000,-828.84854991,9.399e-05,2]
[422752657,1779358239000,-828.84854991,9.399e-05,2]
[422752659,1779358239000,-881.59345762,9.399e-05,2]
[422752658,1779358239000,-828.84854991,9.399e-05,2]
[422752660,1779358239000,-881.59345762,9.399e-05,2]
[422752666,1779358239000,-881.59345762,9.399e-05,2]
[422752661,1779358239000,-881.59345762,9.399e-05,2]
[422752667,1779358239000,-881.59345762,9.399e-05,2]
[422752671,1779358239000,-789.31465639,9.399e-05,2]
[422752665,1779358239000,-881.59345762,9.399e-05,2]
[422752668,1779358239000,-881.59345762,9.399e-05,2]
[422752664,1779358239000,-881.59345762,9.399e-05,2]
[422752670,1779358239000,-70.23896479,9.399e-05,2]
[422752669,1779358239000,-859.55362118,9.399e-05,2]
[422752672,1779358239000,-17679.11460314,9.4e-05,2]
[422752662,1779358239000,-881.59345762,9.399e-05,2]
[422752684,1779358240000,-77672.159615,9.4e-05,2]
[422752746,1779358247000,-3594.98,9.306e-05,2]
[422752747,1779358247000,-1405.02,9.306e-05,2]
[422752748,1779358247000,-2111.93249198,9.4e-05,2]
[422752749,1779358247000,-7489.01747438,9.4e-05,2]
[422752770,1779359084000,-200.0,0.00017834,120]
[422752816,1779359432000,-1828.60152261,7.375e-05,2]
[422752826,1779359432000,-895.69805685,7.375e-05,2]
[422752834,1779359432000,-881.75960186,7.375e-05,2]
[422752823,1779359432000,-807.0,7.375e-05,2]
[422752842,1779359432000,-1306.31999993,7.887e-05,2]
[422752840,1779359432000,-5295.81772407,7.6e-05,2]
[422752836,1779359432000,-547.26997992,7.562e-05,2]
[422752838,1779359432000,-300.0,7.599e-05,2]
[422752832,1779359432000,-586.94081868,7.375e-05,2]
[422752887,1779359438000,-300.0,8.044e-05,2]
[422752888,1779359438000,-300.0,8.044e-05,2]
[422752889,1779359438000,-300.0,8.044e-05,2]
[422752886,1779359438000,-300.0,8.044e-05,2]
[422752885,1779359438000,-300.0,8.044e-05,2]
[422752880,1779359438000,-300.0,8.044e-05,2]
[422752877,1779359438000,-15538.43927243,7.987e-05,2]
[422752879,1779359438000,-300.0,8.044e-05,2]
[422752878,1779359438000,-300.0,8.044e-05,2]
[422752883,1779359438000,-300.0,8.044e-05,2]
[422752884,1779359438000,-300.0,8.044e-05,2]
[422752891,1779359438000,-300.0,8.044e-05,2]
[422752876,1779359438000,-547.26997992,7.937e-05,2]
[422752881,1779359438000,-300.0,8.044e-05,2]
[422752875,1779359438000,-7340.28061591,7.887e-05,2]
[422752882,1779359438000,-300.0,8.044e-05,2]
[422752890,1779359438000,-300.0,8.044e-05,2]
[422752912,1779359438000,-661.63602347,8.282e-05,2]
[422752895,1779359438000,-500.0,8.219e-05,2]
[422752892,1779359438000,-300.0,8.044e-05,2]
[422752911,1779359438000,-661.63602347,8.282e-05,2]
[422752913,1779359438000,-661.63602347,8.282e-05,2]
[422752910,1779359438000,-661.63602347,8.282e-05,2]
[422752907,1779359438000,-600.0,8.248e-05,2]
[422752902,1779359438000,-508.51187399,8.219e-05,2]
[422752900,1779359438000,-514.19326054,8.219e-05,2]
[422752909,1779359438000,-661.63602347,8.282e-05,2]
[422752914,1779359438000,-661.63602347,8.282e-05,2]
[422752908,1779359438000,-461.3293713,8.282e-05,2]
[422752905,1779359438000,-500.0,8.219e-05,2]
[422752897,1779359438000,-500.0,8.219e-05,2]
[422752904,1779359438000,-500.0,8.219e-05,2]
[422752893,1779359438000,-17540.15298097,8.087e-05,2]
[422752894,1779359438000,-19541.8666896,8.187e-05,2]
[422752898,1779359438000,-521.76850354,8.219e-05,2]
[422752896,1779359438000,-663.63,8.219e-05,2]
[422752933,1779359439000,-500.0,8.493e-05,2]
[422752947,1779359439000,-500.0,9.041e-05,2]
[422752936,1779359439000,-601.922546,8.493e-05,2]
[422752937,1779359439000,-500.0,8.493e-05,2]
[422752939,1779359439000,-160.0,8.677e-05,2]
[422752940,1779359439000,-27734.25085606,8.687e-05,2]
[422752938,1779359439000,-500.0,8.559e-05,2]
[422752946,1779359439000,-376.06230525,9.041e-05,2]
[422752943,1779359439000,-500.0,8.767e-05,2]
[422752945,1779359439000,-663.63,9.041e-05,2]
[422752942,1779359439000,-663.63,8.767e-05,2]
[422752932,1779359439000,-23545.29410685,8.487e-05,2]
[422752935,1779359439000,-500.0,8.493e-05,2]
[422752927,1779359439000,-2611.06410826,8.287e-05,2]
[422752919,1779359439000,-661.63602347,8.282e-05,2]
[422752930,1779359439000,-21543.58039823,8.387e-05,2]
[422752928,1779359439000,-7408.61605844,8.287e-05,2]
[422752926,1779359439000,-11180.78243066,8.287e-05,2]
[422752929,1779359439000,-420.0,8.359e-05,2]
[422752925,1779359439000,-500.0,8.285e-05,2]
[422752923,1779359439000,-661.63602347,8.282e-05,2]
[422752924,1779359439000,-661.63602347,8.282e-05,2]
[422752921,1779359439000,-661.63602347,8.282e-05,2]
[422752918,1779359439000,-661.63602347,8.282e-05,2]
[422752915,1779359439000,-661.63602347,8.282e-05,2]
[422752920,1779359439000,-661.63602347,8.282e-05,2]
[422752922,1779359439000,-661.63602347,8.282e-05,2]
[422752917,1779359439000,-661.63602347,8.282e-05,2]
[422752916,1779359439000,-661.63602347,8.282e-05,2]
[422752931,1779359439000,-421.34265295,8.456e-05,2]
[422752944,1779359439000,-500.0,8.767e-05,2]
[422752934,1779359439000,-663.63,8.493e-05,2]
[422752949,1779359439000,-161.7158655,9.057e-05,2]
[422752941,1779359439000,-191.8443565,8.767e-05,2]
[422752975,1779359439000,-5951.47906504,9.4e-05,2]
[422752976,1779359439000,-5020.26361399,9.4e-05,2]
[422752974,1779359439000,-121838.2263423,9.4e-05,2]
[422752977,1779359439000,-3015.27616675,9.4e-05,2]
[422752973,1779359439000,-544487.80702265,9.4e-05,2]
[422752963,1779359439000,-663.63,9.315e-05,2]
[422752964,1779359439000,-500.0,9.315e-05,2]
[422752972,1779359439000,-1762.10083161,9.399e-05,2]
[422752965,1779359439000,-556.51834274,9.36e-05,2]
[422752970,1779359439000,-844.90584581,9.399e-05,2]
[422752971,1779359439000,-440.96617408,9.399e-05,2]
[422752969,1779359439000,-211.43789935,9.399e-05,2]
[422752968,1779359439000,-500.0,9.398e-05,2]
[422752967,1779359439000,-500.0,9.398e-05,2]
[422752978,1779359439000,-2355.02706498,9.4e-05,2]
[422752962,1779359439000,-599.60298507,9.305e-05,2]
[422752960,1779359439000,-578.20924308,9.25e-05,2]
[422752961,1779359439000,-27825.43612223,9.289e-05,2]
[422752958,1779359439000,-557.5788265,9.195e-05,2]
[422752955,1779359439000,-151.0,9.082e-05,2]
[422752954,1779359439000,-535.1986977,9.082e-05,2]
[422752956,1779359439000,-503.52032771,9.14e-05,2]
[422752957,1779359439000,-537.6845,9.14e-05,2]
[422752952,1779359439000,-720.0,9.072e-05,2]
[422752951,1779359439000,-160.0,9.072e-05,2]
[422752953,1779359439000,-151.0,9.082e-05,2]
[422752950,1779359439000,-160.0,9.057e-05,2]
[422752948,1779359439000,-766.48970852,9.057e-05,2]
[422752966,1779359439000,-500.0,9.398e-05,2]
[422752959,1779359439000,-587.0,9.195e-05,2]
[422753055,1779359447000,-1000.0,9.4e-05,2]
[422753059,1779359827000,163.076488,3.752e-05,2]
[422753154,1779360632000,-501.42734528,8.219e-05,2]
[422753164,1779360632000,-501.76763941,8.219e-05,2]
[422753166,1779360632000,-511.74729863,8.219e-05,2]
[422753158,1779360632000,-482.28490815,8.219e-05,2]
[422753156,1779360632000,-500.0,8.219e-05,2]
[422753162,1779360632000,-500.0,8.219e-05,2]
[422753160,1779360632000,-17.71509185,8.219e-05,2]
[422753155,1779360632000,-500.0,8.219e-05,2]
[422753151,1779360632000,-500.0,8.219e-05,2]
[422753140,1779360632000,-500.0,8.219e-05,2]
[422753141,1779360632000,-500.0,8.219e-05,2]
[422753149,1779360632000,-500.95760714,8.219e-05,2]
[422753125,1779360632000,-4718.87313359,7.138e-05,2]
[422753139,1779360632000,-500.0,8.219e-05,2]
[422753137,1779360632000,-500.0,8.219e-05,2]
[422753148,1779360632000,-500.55307387,8.219e-05,2]
[422753135,1779360632000,-725.0291,8.219e-05,2]
[422753146,1779360632000,-500.0,8.219e-05,2]
[422753133,1779360632000,-547.50605807,8.219e-05,2]
[422753144,1779360632000,-500.37129321,8.219e-05,2]
[422753132,1779360632000,-300.0,8.218e-05,2]
[422753130,1779360632000,-316.9,8.218e-05,2]
[422753127,1779360632000,-529.97831503,7.32e-05,2]
[422753110,1779360632000,-281.12686641,7.138e-05,2]
[422753175,1779360632000,-500.0,8.219e-05,2]
[422753153,1779360632000,-616.61912743,8.219e-05,2]
[422753173,1779360632000,-457.07710586,8.219e-05,2]
[422753128,1779360632000,-945.4842949,7.357e-05,2]
[422753168,1779360632000,-500.0,8.219e-05,2]
[422753223,1779360632000,-500.0,8.219e-05,2]
[422753221,1779360632000,-500.0,8.219e-05,2]
[422753211,1779360632000,-500.9549049,8.219e-05,2]
[422753171,1779360632000,-44.24470502,8.219e-05,2]
[422753204,1779360632000,-500.0,8.219e-05,2]
[422753209,1779360632000,-500.0,8.219e-05,2]
[422753206,1779360632000,-500.0,8.219e-05,2]
[422753207,1779360632000,-500.99186555,8.219e-05,2]
[422753219,1779360632000,-501.70655216,8.219e-05,2]
[422753215,1779360632000,-500.0,8.219e-05,2]
[422753213,1779360632000,-500.0,8.219e-05,2]
[422753202,1779360632000,-500.0,8.219e-05,2]
[422753197,1779360632000,-501.18698301,8.219e-05,2]
[422753217,1779360632000,-502.29685896,8.219e-05,2]
[422753200,1779360632000,-500.0,8.219e-05,2]
[422753170,1779360632000,-500.0,8.219e-05,2]
[422753177,1779360632000,-500.0,8.219e-05,2]
[422753199,1779360632000,-500.0,8.219e-05,2]
[422753180,1779360632000,-501.97985602,8.219e-05,2]
[422753182,1779360632000,-607.90504423,8.219e-05,2]
[422753184,1779360632000,-500.0,8.219e-05,2]
[422753178,1779360632000,-500.0,8.219e-05,2]
[422753186,1779360632000,-501.35455154,8.219e-05,2]
[422753188,1779360632000,-500.0,8.219e-05,2]
[422753189,1779360632000,-500.0,8.219e-05,2]
[422753191,1779360632000,-482.86119145,8.219e-05,2]
[422753193,1779360632000,-445.33919365,8.219e-05,2]
[422753195,1779360632000,-500.0,8.219e-05,2]
[422753229,1779360633000,-448.54589267,8.219e-05,2]
[422753227,1779360633000,-500.0,8.219e-05,2]
[422753225,1779360633000,-500.0,8.219e-05,2]
[422753269,1779360638000,-500.0,8.219e-05,2]
[422753264,1779360638000,-51.45410733,8.219e-05,2]
[422753265,1779360638000,-500.0,8.219e-05,2]
[422753279,1779360638000,-500.0,8.219e-05,2]
[422753281,1779360638000,-500.0,8.219e-05,2]
[422753267,1779360638000,-500.0,8.219e-05,2]
[422753270,1779360638000,-501.10207706,8.219e-05,2]
[422753277,1779360638000,-500.0,8.219e-05,2]
[422753272,1779360638000,-844.76,8.219e-05,2]
[422753276,1779360638000,-500.0,8.219e-05,2]
[422753274,1779360638000,-503.0695884,8.219e-05,2]
[422753286,1779360638000,-500.0,8.219e-05,2]
[422753292,1779360638000,-500.0,8.219e-05,2]
[422753291,1779360638000,-444.45257057,8.219e-05,2]
[422753294,1779360638000,-500.0,8.219e-05,2]
[422753296,1779360638000,-500.0,8.219e-05,2]
[422753367,1779360639000,-500.0,8.219e-05,2]
[422753365,1779360639000,-500.0,8.219e-05,2]
[422753381,1779360639000,-300.0,8.382e-05,2]
[422753362,1779360639000,-500.0,8.219e-05,2]
[422753380,1779360639000,-300.0,8.382e-05,2]
[422753376,1779360639000,-500.0,8.219e-05,2]
[422753360,1779360639000,-501.02104211,8.219e-05,2]
[422753378,1779360639000,-500.0,8.219e-05,2]
[422753372,1779360639000,-500.0,8.219e-05,2]
[422753369,1779360639000,-500.0,8.219e-05,2]
[422753370,1779360639000,-500.0,8.219e-05,2]
[422753358,1779360639000,-500.0,8.219e-05,2]
[422753374,1779360639000,-500.0,8.219e-05,2]
[422753364,1779360639000,-500.0,8.219e-05,2]
[422753392,1779360639000,-300.0,8.382e-05,2]
[422753385,1779360639000,-300.0,8.382e-05,2]
[422753388,1779360639000,-300.0,8.382e-05,2]
[422753357,1779360639000,-399.88068325,8.219e-05,2]
[422753387,1779360639000,-300.0,8.382e-05,2]
[422753390,1779360639000,-300.0,8.382e-05,2]
[422753407,1779360639000,-600.0,8.447e-05,2]
[422753398,1779360639000,-300.0,8.382e-05,2]
[422753396,1779360639000,-300.0,8.382e-05,2]
[422753394,1779360639000,-300.0,8.382e-05,2]
[422753402,1779360639000,-300.0,8.382e-05,2]
[422753404,1779360639000,-300.0,8.382e-05,2]
[422753405,1779360639000,-300.0,8.382e-05,2]
[422753400,1779360639000,-300.0,8.382e-05,2]
[422753409,1779360639000,-500.0,8.493e-05,2]
[422753383,1779360639000,-300.0,8.382e-05,2]
[422753355,1779360639000,-500.0,8.219e-05,2]
[422753312,1779360639000,-500.0,8.219e-05,2]
[422753351,1779360639000,-500.0,8.219e-05,2]
[422753411,1779360639000,-500.0,8.493e-05,2]
[422753299,1779360639000,-500.0,8.219e-05,2]
[422753298,1779360639000,-500.0,8.219e-05,2]
[422753301,1779360639000,-500.0,8.219e-05,2]
[422753303,1779360639000,-522.45,8.219e-05,2]
[422753305,1779360639000,-500.0,8.219e-05,2]
[422753306,1779360639000,-500.0,8.219e-05,2]
[422753308,1779360639000,-500.0,8.219e-05,2]
[422753313,1779360639000,-500.0,8.219e-05,2]
[422753317,1779360639000,-500.0,8.219e-05,2]
[422753322,1779360639000,-500.0,8.219e-05,2]
[422753324,1779360639000,-500.0,8.219e-05,2]
[422753310,1779360639000,-594.98349746,8.219e-05,2]
[422753315,1779360639000,-501.46231995,8.219e-05,2]
[422753349,1779360639000,-500.0,8.219e-05,2]
[422753319,1779360639000,-500.0,8.219e-05,2]
[422753320,1779360639000,-500.0,8.219e-05,2]
[422753326,1779360639000,-500.0,8.219e-05,2]
[422753328,1779360639000,-500.0,8.219e-05,2]
[422753331,1779360639000,-500.0,8.219e-05,2]
[422753333,1779360639000,-500.0,8.219e-05,2]
[422753335,1779360639000,-501.4782605,8.219e-05,2]
[422753344,1779360639000,-501.35207673,8.219e-05,2]
[422753336,1779360639000,-500.0,8.219e-05,2]
[422753338,1779360639000,-500.0,8.219e-05,2]
[422753346,1779360639000,-528.28,8.219e-05,2]
[422753342,1779360639000,-503.13,8.219e-05,2]
[422753340,1779360639000,-500.0,8.219e-05,2]
[422753348,1779360639000,-501.3716663,8.219e-05,2]
[422753353,1779360639000,-501.25996957,8.219e-05,2]
[422753329,1779360639000,-500.0,8.219e-05,2]
[422753423,1779360639000,-501.34953976,8.493e-05,2]
[422753450,1779360639000,-614.59,8.493e-05,2]
[422753425,1779360639000,-514.7,8.493e-05,2]
[422753487,1779360639000,-500.0,9.041e-05,2]
[422753491,1779360639000,-151.5,9.216e-05,2]
[422753489,1779360639000,-320.22087597,9.132e-05,2]
[422753495,1779360639000,-151.5,9.216e-05,2]
[422753493,1779360639000,-151.5,9.216e-05,2]
[422753501,1779360639000,-151.5,9.216e-05,2]
[422753503,1779360639000,-207.09817177,9.216e-05,2]
[422753499,1779360639000,-151.5,9.216e-05,2]
[422753506,1779360639000,-500.0,9.216e-05,2]
[422753504,1779360639000,-500.0,9.216e-05,2]
[422753508,1779360639000,-500.0,9.216e-05,2]
[422753510,1779360639000,-432.90073873,9.216e-05,2]
[422753512,1779360639000,-720.0,9.291e-05,2]
[422753514,1779360639000,-770.11230556,9.3e-05,2]
[422753516,1779360639000,-322.93055991,9.313e-05,2]
[422753518,1779360639000,-555.77425972,9.313e-05,2]
[422753521,1779360639000,-555.77425972,9.313e-05,2]
[422753519,1779360639000,-555.77425972,9.313e-05,2]
[422753523,1779360639000,-555.77425972,9.313e-05,2]
[422753525,1779360639000,-555.77425972,9.313e-05,2]
[422753527,1779360639000,-555.77425972,9.313e-05,2]
[422753531,1779360639000,-555.77425972,9.313e-05,2]
[422753532,1779360639000,-555.77425972,9.313e-05,2]
[422753529,1779360639000,-555.77425972,9.313e-05,2]
[422753534,1779360639000,-555.77425972,9.313e-05,2]
[422753536,1779360639000,-555.77425972,9.313e-05,2]
[422753538,1779360639000,-450.72619014,9.313e-05,2]
[422753540,1779360639000,-105.04806958,9.313e-05,2]
[422753421,1779360639000,-397.13,8.493e-05,2]
[422753485,1779360639000,-613.52571167,9.041e-05,2]
[422753483,1779360639000,-370.21016435,9.041e-05,2]
[422753481,1779360639000,-844.76,9.041e-05,2]
[422753479,1779360639000,-420.0,9.04e-05,2]